bitfinex/quotes_ETHUSD_20241104
["timestamp","ask_amount","ask_price","bid_price","bid_amount"]
[1730707951583,4.05498,2466.2,2465.8,4.82185]
[1730707951942,4.05452,2466.4,2465.9,4.05525]
[1730707952161,4.05438,2466.5,2465.9,4.05525]
[1730707952162,4.05472,2466.3,2465.9,4.05525]
[1730707953970,4.05451,2466.4,2465.9,4.942924]
[1730707954347,4.68342349,2466.3,2465.4,0.7585]
[1730707954553,4.68342349,2466.3,2465.6,4.05574]
[1730707954554,4.05506,2466.1,2465.6,4.05574]
[1730707954881,4.05506,2466.1,2465.7,4.0556]
[1730707955447,0.7877,2466.5,2465.8,4.80873]
[1730707955778,4.05455,2466.4,2465.9,4.536093]
[1730707956186,2.10722522,2466.7,2466.4,0.55]
[1730707956346,2.10722522,2466.7,2466.6,4.60416]
[1730707956894,4.05335,2467.1,2466.6,4.60416]
[1730707957184,6.79472513,2467.5,2467.0,4.60341]
[1730707957185,4.68754991,2467.5,2467.0,4.60341]
[1730707957399,4.05275,2467.5,2467.0,0.55]
[1730707957546,4.0531,2467.3,2467.0,0.55]
[1730707958393,4.05325,2467.2,2466.9,0.7724]
[1730707958872,4.0531,2467.3,2466.9,0.7724]
[1730707959071,4.05325,2467.2,2466.9,0.7724]
[1730707959949,4.05303,2467.3,2466.9,0.7724]
[1730707963247,8.10616,2467.3,2466.9,0.7724]
[1730707963647,4.05303,2467.3,2466.9,0.7724]
[1730707965985,4.05303,2467.3,2466.9,1.960389]
[1730707966691,4.05281,2467.5,2467.0,4.60348]
[1730707966985,4.05268,2467.5,2467.0,4.60349]
[1730707967152,4.05268,2467.5,2467.0,5.6652369]
[1730707968481,4.05294,2467.4,2467.0,1.6117469]
[1730707968688,4.05302,2467.3,2467.0,0.55]
[1730707969463,0.0617408,2467.6,2467.0,0.55]
[1730707969464,4.05268,2467.5,2467.0,0.55]
[1730707969664,4.05268,2467.5,2467.0,4.60348]
[1730707970193,4.05268,2467.5,2467.1,0.8155]
[1730707971965,0.0617408,2467.6,2467.2,4.60316]
[1730707972376,0.0617408,2467.6,2467.2,0.55]
[1730707972703,0.0617408,2467.6,2467.2,4.60309]
[1730707973778,0.0617408,2467.6,2467.3,4.05294]
[1730707973989,0.0617408,2467.6,2467.2,0.55]
[1730707974311,4.1143308,2467.6,2467.2,0.55]
[1730707974817,0.8311,2467.5,2466.8,0.7663]
[1730707974978,4.05307,2467.3,2467.0,0.55]
[1730707976115,4.05285,2467.4,2467.0,0.7782]
[1730707978419,4.05285,2467.4,2467.0,4.8317]
[1730707979194,4.1142808,2467.6,2467.0,4.8317]
[1730707979195,4.05271,2467.5,2467.0,4.83164]
[1730707979493,4.05271,2467.5,2467.1,4.05333]
[1730707979674,4.05271,2467.5,2467.0,4.83169]
[1730707980083,4.05271,2467.5,2467.0,8.88518]
[1730707980283,4.05271,2467.5,2467.0,5.78331443]
[1730707982339,4.0534,2467.1,2466.7,0.8066]
[1730707982501,4.05319,2467.2,2466.7,4.86049]
[1730707982886,8.10647,2467.2,2466.7,4.86049]
[1730707983092,4.05319,2467.2,2466.7,4.86049]
[1730707983421,4.05319,2467.2,2466.5,4.86091]
[1730707983422,4.05349,2467.1,2466.5,4.86091]
[1730707983650,4.05353,2467.0,2466.5,4.86091]
[1730707984688,4.05353,2467.0,2466.6,0.55]
[1730707985128,4.05349,2467.1,2466.6,0.55]
[1730707985332,4.05345,2467.1,2466.6,0.55]
[1730707985499,4.05351,2467.0,2466.6,0.55]
[1730707986134,4.05344,2467.1,2466.6,0.55]
[1730707986288,4.05363,2467.0,2466.6,0.55]
[1730707986492,0.405344,2467.1,2466.6,0.55]
[1730707986493,4.05382,2466.9,2466.6,0.55]
[1730707986711,4.05406,2466.7,2466.5,0.8066]
[1730707986925,4.05419,2466.6,2466.3,1.3809]
[1730707987139,4.05436,2466.5,2466.0,0.42286582]
[1730707987476,4.05455,2466.4,2466.0,0.8309]
[1730707988515,4.05432,2466.5,2466.1,0.55]
[1730707988991,4.05452,2466.4,2466.1,0.55]
[1730707989192,4.05432,2466.5,2466.1,0.55]
[1730707989428,4.05418,2466.6,2466.1,4.60495]
[1730707991425,8.10828,2466.7,2466.1,5.554063]
[1730707992010,4.0542,2466.6,2466.1,5.554063]
[1730707993328,4.0542,2466.6,2466.1,5.554003]
[1730707993635,4.0542,2466.6,2466.1,9.608913]
[1730707994207,4.0542,2466.6,2466.1,5.554003]
[1730707998835,8.10845,2466.6,2466.1,5.554003]
[1730707999001,4.0542,2466.6,2466.1,5.554003]
[1730708000316,4.0542,2466.6,2466.1,0.55]
[1730708000634,4.05442,2466.5,2466.1,0.55]
[1730708002877,4.05457,2466.4,2466.0,0.8309]
[1730708003081,4.05472,2466.3,2466.0,0.8309]
[1730708003964,4.05457,2466.4,2466.0,0.8309]
[1730708004333,8.10917,2466.4,2466.0,0.8309]
[1730708005847,4.05465,2466.3,2466.0,0.8309]
[1730708010071,4.05457,2466.4,2466.0,0.8309]
[1730708010284,8.10918,2466.4,2466.0,0.8309]
[1730708010784,4.05467,2466.3,2466.0,0.8309]
[1730708012377,4.05443,2466.5,2466.1,0.55]
[1730708012582,4.05419,2466.6,2466.1,4.60496]
[1730708012754,4.05419,2466.6,2466.3,0.8261]
[1730708012755,4.05416,2466.6,2466.3,0.8261]
[1730708014343,4.05433,2466.5,2466.3,0.8261]
[1730708017384,4.05449,2466.4,2466.1,1.3149]
[1730708019658,4.05436,2466.5,2466.1,1.3149]
[1730708020380,4.05436,2466.5,2466.1,2.257422]
[1730708021142,4.05436,2466.5,2466.1,6.312372]
[1730708021362,4.05418,2466.6,2466.1,6.312372]
[1730708021995,4.05433,2466.5,2466.1,2.257422]
[1730708023407,4.05433,2466.5,2466.1,1.3149]
[1730708024799,4.05418,2466.6,2466.1,5.36985]
[1730708024800,4.05422,2466.6,2466.1,5.36985]
[1730708025377,4.05396,2466.8,2466.4,0.55]
[1730708025589,4.05401,2466.7,2466.4,0.55]
[1730708025792,4.05417,2466.6,2466.4,0.55]
[1730708026380,4.05462,2466.4,2466.1,0.8076]
[1730708026578,4.05478,2466.3,2465.9,1.23050497]
[1730708026776,4.05493,2466.2,2465.9,1.23050497]
[1730708027090,4.05493,2466.2,2465.9,0.8076]
[1730708027287,5.71541308,2466.2,2465.9,0.8076]
[1730708029078,4.05469,2466.3,2465.9,0.8076]
[1730708030811,4.05469,2466.3,2465.9,2.04331212]
[1730708031015,4.05469,2466.3,2465.9,1.8713701]
[1730708031382,4.05469,2466.3,2465.9,0.9795121]
[1730708031383,4.05484,2466.2,2465.9,0.9795121]
[1730708031690,4.05478,2466.3,2465.9,0.9795121]
[1730708033119,4.05483,2466.2,2465.9,0.9795121]
[1730708035177,4.0549,2466.2,2465.9,0.1719121]
[1730708035782,4.05499,2466.1,2465.8,0.7725]
[1730708040019,8.10952,2466.3,2465.9,0.17197917]
[1730708040421,4.05488,2466.2,2465.8,5.6382757]
[1730708040600,4.05488,2466.2,2465.9,0.17197707]
[1730708040800,4.05488,2466.2,2465.8,5.6382757]
[1730708041726,1.6731224,2466.4,2465.9,0.17198158]
[1730708042027,4.05469,2466.3,2465.8,9.6936357]
[1730708042331,4.05469,2466.3,2465.9,0.17198042]
[1730708042651,4.05484,2466.2,2465.8,5.6381957]
[1730708042783,4.05484,2466.2,2465.9,0.17199115]
[1730708042986,4.05484,2466.2,2465.8,5.6381957]
[1730708043186,4.05484,2466.2,2465.9,0.17199075]
[1730708043432,4.05469,2466.3,2465.8,0.7725]
[1730708043433,4.05524,2466.0,2465.8,0.7725]
[1730708043725,4.05524,2466.0,2465.6,3.0]
[1730708043726,4.05524,2466.0,2465.7,0.34397711]
[1730708043933,4.05524,2466.0,2465.7,0.17199173]
[1730708045042,4.05527,2466.0,2465.7,0.17199173]
[1730708045327,1.6731224,2466.2,2465.7,4.22759173]
[1730708045531,4.05488,2466.2,2465.7,4.22759173]
[1730708046102,4.05488,2466.2,2465.8,0.7831]
[1730708046316,4.05504,2466.1,2465.8,0.7831]
[1730708047743,4.0552,2466.0,2465.7,0.17199173]
[1730708048539,4.05542,2465.9,2465.7,0.17199173]
[1730708051444,4.05542,2465.9,2465.6,0.7831]
[1730708052414,4.05539,2465.9,2465.6,0.7831]
[1730708056949,4.87029,2465.9,2465.4,8.8665]
[1730708057250,4.87029,2465.9,2465.4,4.81045]
[1730708058219,4.87029,2465.9,2465.4,6.12392136]
[1730708058412,4.87029,2465.9,2465.5,4.22775071]
[1730708058759,5.7277724,2466.3,2465.8,4.05539]
[1730708058760,4.87403,2466.3,2465.8,4.05539]
[1730708058940,6.5468124,2466.5,2466.0,0.8158]
[1730708059120,4.87369,2466.5,2466.0,4.87087]
[1730708059314,0.8193,2466.5,2466.1,4.05485]
[1730708060312,4.0543,2466.6,2466.1,4.05485]
[1730708061118,4.0543,2466.6,2466.2,4.05481]
[1730708061465,4.0543,2466.6,2466.1,4.05485]
[1730708062745,4.05436,2466.5,2466.1,4.05485]
[1730708062983,4.05436,2466.5,2466.1,5.03750413]
[1730708064585,4.05436,2466.5,2466.1,0.98265413]
[1730708065642,0.8235,2466.7,2466.1,0.55]
[1730708065643,4.05476,2466.3,2466.1,0.55]
[1730708065888,4.05482,2466.2,2466.1,0.55]
[1730708066492,4.05482,2466.2,2465.7,0.8009]
[1730708066787,4.05547,2465.9,2465.7,0.8009]
[1730708067079,4.05547,2465.9,2465.7,1.20848625]
[1730708068390,4.05564,2465.7,2465.6,0.72184338]
[1730708068574,4.05564,2465.7,2465.5,0.8192]
[1730708068755,4.0558,2465.6,2465.5,0.99102867]
[1730708069184,4.0558,2465.6,2465.5,0.8192]
[1730708070487,4.05597,2465.5,2465.4,0.17181405]
[1730708070646,4.05597,2465.5,2465.3,4.3138]
[1730708070647,4.05613,2465.4,2465.3,4.3138]
[1730708070847,4.05613,2465.4,2465.3,1.4856111]
[1730708071057,4.05597,2465.5,2465.3,1.3138]
[1730708071288,4.05597,2465.5,2465.3,1.4856111]
[1730708071648,8.11206,2465.5,2465.3,1.3138]
[1730708071845,8.11206,2465.5,2465.3,1.4856111]
[1730708071846,4.05597,2465.5,2465.3,1.4856111]
[1730708072049,4.05613,2465.4,2465.3,0.7638]
[1730708072352,4.05646,2465.2,2465.1,0.1718111]
[1730708072550,4.05663,2465.1,2465.0,0.1718111]
[1730708072777,4.05663,2465.1,2464.9,0.9972111]
[1730708072979,4.05663,2465.1,2464.9,1.72021437]
[1730708073389,4.05649,2465.2,2464.9,1.72021437]
[1730708073586,4.05649,2465.2,2465.0,0.55]
[1730708073958,4.05663,2465.1,2465.0,0.55]
[1730708074259,4.05649,2465.2,2465.0,0.55]
[1730708075652,4.05622,2465.4,2465.0,0.55]
[1730708075653,4.05631,2465.3,2465.0,1.46555033]
[1730708077386,4.05647,2465.2,2465.0,1.46555033]
[1730708078296,4.05633,2465.3,2465.0,1.46555033]
[1730708083801,4.05611,2465.5,2465.1,0.84232783]
[1730708083971,4.05617,2465.4,2465.1,1.87565914]
[1730708084811,4.056,2465.5,2465.1,1.87565914]
[1730708085602,8.11207,2465.5,2465.1,1.87565914]
[1730708085770,4.0562,2465.4,2465.1,1.87565914]
[1730708086602,4.05637,2465.3,2465.1,0.7612]
[1730708088109,4.05646,2465.2,2465.0,0.55]
[1730708096613,5.71768537,2465.3,2465.0,0.55]
[1730708096922,4.05634,2465.3,2465.0,0.55]
[1730708097112,4.05634,2465.3,2465.0,1.797876]
[1730708100520,4.05631,2465.3,2465.0,1.797876]
[1730708101926,4.0565,2465.2,2465.0,1.247876]
[1730708102128,4.05679,2465.0,2464.6,0.7796]
[1730708102292,4.05715,2464.8,2464.6,0.7796]
[1730708102480,4.05697,2464.9,2464.6,0.7796]
[1730708102680,5.71809537,2465.1,2464.6,0.7796]
[1730708103016,4.05687,2465.0,2464.6,0.7796]
[1730708103216,4.05705,2464.9,2464.6,0.7796]
[1730708103420,4.05687,2465.0,2464.6,0.7796]
[1730708103890,4.05687,2465.0,2464.6,4.83703]
[1730708104100,4.05687,2465.0,2464.6,6.026493]
[1730708104520,4.05666,2465.1,2464.6,10.083853]
[1730708104724,4.05648,2465.2,2464.7,5.43631]
[1730708105432,4.05648,2465.2,2464.7,6.97075784]
[1730708106116,4.05648,2465.2,2464.9,0.7841]
[1730708106433,8.1131,2465.2,2464.9,0.7841]
[1730708106730,4.05648,2465.2,2464.9,0.7841]
[1730708107644,8.11305,2465.2,2464.9,0.7841]
[1730708108012,4.05648,2465.2,2464.9,0.7841]
[1730708108212,4.05613,2465.4,2465.0,4.60676]
[1730708108411,4.05613,2465.4,2465.1,0.7777]
[1730708108609,4.05595,2465.6,2465.1,0.7777]
[1730708108844,4.05604,2465.5,2465.1,0.7777]
[1730708109232,4.05621,2465.4,2465.1,0.7777]
[1730708110617,4.05604,2465.5,2465.1,0.7777]
[1730708110825,4.05604,2465.5,2465.2,0.55]
[1730708111031,4.05619,2465.4,2465.2,0.55]
[1730708111948,4.0563,2465.3,2465.2,0.55]
[1730708112242,4.05661,2465.2,2465.0,0.55]
[1730708112406,2.48024537,2465.4,2465.0,0.55]
[1730708112608,4.05659,2465.2,2465.0,0.55]
[1730708113536,4.05669,2465.1,2464.9,0.7588]
[1730708114244,4.05669,2465.1,2464.9,1.3088]
[1730708114401,8.1134,2465.1,2464.9,0.55]
[1730708114741,8.1134,2465.1,2464.8,0.55]
[1730708115345,4.05669,2465.1,2464.8,0.55]
[1730708115540,4.05669,2465.1,2464.8,1.25440729]
[1730708115743,4.05669,2465.1,2464.8,1.60661607]
[1730708116047,4.05669,2465.1,2464.9,0.17194675]
[1730708116340,4.05669,2465.1,2464.8,1.60661607]
[1730708116341,4.05669,2465.1,2465.0,0.17194213]
[1730708116651,4.05669,2465.1,2464.9,0.17198075]
[1730708116807,4.05669,2465.1,2464.8,0.55]
[1730708116808,4.05679,2465.0,2464.8,0.55]
[1730708117003,4.05695,2464.9,2464.8,0.55]
[1730708117230,4.05695,2464.9,2464.8,1.25450674]
[1730708117432,4.05679,2465.0,2464.8,1.42648574]
[1730708117639,4.05679,2465.0,2464.9,0.171979]
[1730708118138,4.81526,2465.1,2464.9,0.171979]
[1730708118340,4.05683,2465.0,2464.7,5.17690105]
[1730708118543,4.05683,2465.0,2464.8,1.93335663]
[1730708118757,4.05683,2465.0,2464.9,0.1719749]
[1730708122245,4.05648,2465.2,2464.9,0.1719749]
[1730708122563,4.05666,2465.1,2465.0,0.17195705]
[1730708122748,4.05666,2465.1,2464.9,0.17195705]
[1730708123265,4.05666,2465.1,2464.8,1.33193344]
[1730708123427,4.0569,2465.0,2464.9,0.17195601]
[1730708123825,4.0569,2465.0,2464.8,0.17195601]
[1730708124057,4.0569,2465.0,2464.9,0.17195601]
[1730708124259,4.05695,2464.9,2464.8,0.17195601]
[1730708124833,4.05688,2465.0,2464.8,0.17195601]
[1730708125026,4.05688,2465.0,2464.6,2.99984431]
[1730708125251,4.05688,2465.0,2464.7,0.87639832]
[1730708125449,4.05688,2465.0,2464.8,0.17194858]
[1730708125658,4.05688,2465.0,2464.7,1.05668537]
[1730708125875,4.05688,2465.0,2464.8,0.17194578]
[1730708126059,4.05688,2465.0,2464.6,2.99983302]
[1730708126364,4.05688,2465.0,2464.7,0.87636782]
[1730708128128,4.0565,2465.2,2465.0,0.17193157]
[1730708128360,4.0565,2465.2,2464.9,0.8163]
[1730708128739,4.0565,2465.2,2465.0,0.17194339]
[1730708129138,4.05663,2465.1,2464.9,0.8163]
[1730708130065,4.05663,2465.1,2464.9,0.98825639]
[1730708130427,4.05674,2465.1,2464.9,0.8163]
[1730708131143,4.05674,2465.1,2464.9,0.98826439]
[1730708131369,4.05674,2465.1,2464.9,0.8163]
[1730708133635,8.11348,2465.1,2464.9,0.8163]
[1730708134397,4.05674,2465.1,2464.9,0.8163]
[1730708135700,4.05646,2465.2,2464.9,0.8163]
[1730708135860,4.05646,2465.2,2465.0,0.1719733]
[1730708136189,4.05646,2465.2,2464.9,0.8163]
[1730708136395,4.05646,2465.2,2465.0,0.17197924]
[1730708136684,4.0565,2465.2,2465.0,0.55]
[1730708138589,4.0565,2465.2,2465.1,0.55]
[1730708139176,4.05663,2465.1,2464.8,1.8800173]
[1730708139390,4.05663,2465.1,2464.9,0.17197906]
[1730708139577,4.05663,2465.1,2465.0,0.17197906]
[1730708139891,4.05648,2465.2,2465.0,0.17197906]
[1730708140188,4.05648,2465.2,2465.1,0.17198982]
[1730708140352,4.05648,2465.2,2464.9,0.17198982]
[1730708140555,4.05648,2465.2,2465.0,0.72198982]
[1730708140876,4.05648,2465.2,2465.1,0.17198982]
[1730708142513,8.11311,2465.2,2464.9,0.55]
[1730708142673,8.11311,2465.2,2465.0,0.17199263]
[1730708142872,8.11311,2465.2,2464.9,0.55]
[1730708143072,8.11311,2465.2,2465.0,0.17199247]
[1730708143272,8.11311,2465.2,2464.9,0.55]
[1730708143585,4.05663,2465.1,2465.0,0.72199483]
[1730708145700,4.05663,2465.1,2464.8,2.93689856]
[1730708145701,4.05663,2465.1,2464.9,0.55]
[1730708146017,4.05648,2465.2,2465.0,0.87664335]
[1730708146307,6.4890424,2465.6,2465.2,3.55]
[1730708146308,4.05586,2465.6,2465.2,3.55]
[1730708146630,4.05573,2465.7,2465.4,0.55]
[1730708146828,4.05573,2465.7,2465.5,0.17201272]
[1730708146998,4.05573,2465.7,2465.6,0.1719279]
[1730708147326,4.05533,2465.9,2465.5,0.1719279]
[1730708147532,4.0555,2465.8,2465.5,0.1719279]
[1730708147694,4.0555,2465.8,2465.6,0.94579649]
[1730708147895,4.05523,2466.0,2465.6,1.65658763]
[1730708148131,4.05523,2466.0,2465.7,0.72191848]
[1730708148331,4.05523,2466.0,2465.7,0.55]
[1730708148486,4.05523,2466.0,2465.7,0.72182114]
[1730708148686,4.05523,2466.0,2465.7,0.55]
[1730708148985,4.05491,2466.2,2465.7,1.58182976]
[1730708149199,4.05491,2466.2,2465.9,0.7933]
[1730708149419,8.10987,2466.2,2465.9,0.7933]
[1730708149741,4.05502,2466.1,2465.9,0.7933]
[1730708150033,4.05515,2466.0,2465.9,0.7933]
[1730708150538,4.05533,2465.9,2465.7,1.3707]
[1730708151204,4.05505,2466.1,2465.7,1.3707]
[1730708151430,4.05527,2466.0,2465.7,1.3707]
[1730708151628,4.05527,2466.0,2465.7,1.95800894]
[1730708152408,4.05543,2465.9,2465.7,1.13730894]
[1730708152613,8.11089,2465.9,2465.6,0.55]
[1730708152815,4.05552,2465.8,2465.6,0.55]
[1730708153021,4.05543,2465.9,2465.6,0.55]
[1730708153215,4.05543,2465.9,2465.6,1.82295476]
[1730708153950,4.0551,2466.1,2465.6,1.82295476]
[1730708153951,4.0551,2466.1,2465.8,0.55]
[1730708154251,4.05488,2466.2,2465.8,0.55]
[1730708154456,2.11323476,2466.7,2466.0,4.60508]
[1730708154457,4.05451,2466.4,2466.0,4.60508]
[1730708154748,4.05451,2466.4,2466.0,4.05508]
[1730708155105,4.05451,2466.4,2466.0,5.241124]
[1730708155503,4.05426,2466.6,2466.1,4.13607284]
[1730708155702,4.05426,2466.6,2466.2,5.358]
[1730708156214,4.05401,2466.7,2466.3,4.13572497]
[1730708156639,4.05401,2466.7,2466.3,4.05464]
[1730708156812,4.05364,2467.0,2466.5,4.0543]
[1730708157014,4.05376,2466.9,2466.5,4.0543]
[1730708157212,4.05385,2466.8,2466.4,7.83697]
[1730708157414,4.054,2466.7,2466.4,3.7825]
[1730708157638,4.05386,2466.8,2466.4,7.83698]
[1730708157855,0.7699,2467.1,2466.5,4.05429]
[1730708158041,4.05353,2467.0,2466.5,0.55]
[1730708158315,4.05375,2466.9,2466.5,0.55]
[1730708158513,4.05375,2466.9,2466.5,4.60427]
[1730708158951,4.05375,2466.9,2466.5,0.55]
[1730708159119,4.05353,2467.0,2466.6,1.77722484]
[1730708159329,4.05376,2466.9,2466.6,1.77722484]
[1730708160320,4.05385,2466.8,2466.6,1.77722484]
[1730708160553,4.88105,2466.8,2466.4,0.8217]
[1730708160720,4.05411,2466.7,2466.4,0.8217]
[1730708161057,4.05423,2466.6,2466.4,0.8217]
[1730708161262,4.05411,2466.7,2466.4,0.8217]
[1730708162057,4.05379,2466.9,2466.4,2.014821]
[1730708162350,4.05358,2467.0,2466.5,4.13537708]
[1730708162524,4.05328,2467.2,2466.7,4.0539]
[1730708162727,4.05335,2467.1,2466.8,0.8086]
[1730708163315,4.05353,2467.0,2466.8,0.8086]
[1730708163516,4.05317,2467.2,2466.8,0.8086]
[1730708164134,4.05335,2467.1,2466.8,0.8086]
[1730708164339,4.05351,2467.0,2466.8,0.8086]
[1730708165942,4.0533,2467.2,2466.8,0.8086]
[1730708166254,4.05334,2467.1,2466.8,0.8086]
[1730708167026,4.05359,2467.0,2466.8,0.8086]
[1730708167528,4.05337,2467.1,2466.8,0.8086]
[1730708168520,4.0535,2467.0,2466.8,0.8086]
[1730708170326,4.0532,2467.2,2466.8,0.8086]
[1730708170548,4.05337,2467.1,2466.8,0.8086]
[1730708171164,4.05351,2467.0,2466.8,0.8086]
[1730708171676,4.05334,2467.1,2466.8,0.8086]
[1730708173471,4.05319,2467.2,2466.9,0.55]
[1730708174260,4.05367,2466.9,2466.8,0.8086]
[1730708174599,4.05351,2467.0,2466.8,0.8086]
[1730708177587,8.10687,2467.1,2466.8,0.8086]
[1730708177911,4.0534,2467.1,2466.8,0.8086]
[1730708178291,4.05352,2467.0,2466.8,0.8086]
[1730708179505,4.05367,2466.9,2466.6,1.3235]
[1730708180596,4.05352,2467.0,2466.6,5.37758]
[1730708180765,4.05352,2467.0,2466.6,6.0346631]
[1730708180969,8.10718,2467.0,2466.6,1.9805831]
[1730708181162,4.05352,2467.0,2466.6,1.9805831]
[1730708181384,4.0537,2466.9,2466.6,1.9805831]
[1730708182764,4.0537,2466.9,2466.6,6.0347331]
[1730708183474,4.05356,2467.0,2466.6,6.0347331]
[1730708184065,4.05336,2467.1,2466.6,1.9805831]
[1730708184274,4.05357,2467.0,2466.6,6.0347231]
[1730708185307,4.05336,2467.1,2466.6,6.0347231]
[1730708185308,4.05336,2467.1,2466.7,5.03851451]
[1730708185469,4.05336,2467.1,2466.7,0.98454451]
[1730708185803,4.05328,2467.2,2466.7,5.03842451]
[1730708186169,4.05335,2467.1,2466.7,5.03842451]
[1730708186503,4.05352,2467.0,2466.7,0.98454451]
[1730708189108,4.05368,2466.9,2466.7,0.90347231]
[1730708189313,4.05368,2466.9,2466.6,1.3235]
[1730708191685,8.10751,2466.9,2466.6,1.3235]
[1730708191878,4.05368,2466.9,2466.6,1.3235]
[1730708192227,0.7801,2467.0,2466.2,0.7812]
[1730708192375,3.85168954,2467.4,2466.0,4.83624]
[1730708192376,4.05446,2466.5,2466.0,4.83624]
[1730708192570,4.05425,2466.6,2466.0,1.75144346]
[1730708192777,4.05384,2466.8,2466.1,0.7812]
[1730708193125,4.05384,2466.8,2466.5,0.7686]
[1730708195293,4.83373,2467.0,2466.5,0.7686]
[1730708195294,4.05367,2466.9,2466.5,0.7686]
[1730708195507,4.05384,2466.8,2466.5,0.7686]
[1730708196132,4.05367,2466.9,2466.5,0.7686]
[1730708196440,4.0539,2466.8,2466.5,0.7686]
[1730708197291,4.0539,2466.8,2466.6,0.482308]
[1730708197819,4.05357,2467.0,2466.6,0.482308]
[1730708198019,4.05367,2466.9,2466.6,0.482308]
[1730708198316,4.05357,2467.0,2466.6,4.536458]
[1730708198637,0.7653,2467.1,2466.7,0.55]
[1730708198800,4.81865,2467.1,2466.7,5.1894858]
[1730708199743,4.05335,2467.1,2466.7,1.1355058]
[1730708202326,4.05352,2467.0,2466.7,1.1355058]
[1730708202633,4.05338,2467.1,2466.7,5.1894658]
[1730708203749,1.6731224,2467.2,2466.9,0.55]
[1730708204045,5.7258224,2467.5,2467.1,4.60332]
[1730708204415,4.8717008,2467.6,2467.3,4.60293]
[1730708204416,0.0617408,2467.6,2467.3,4.60293]
[1730708204742,0.0617408,2467.6,2467.4,4.59707868]
[1730708204957,0.0617408,2467.6,2467.5,5.44282683]
[1730708205237,0.0617408,2467.6,2467.5,8.44282683]
[1730708205489,0.0617408,2467.6,2467.5,8.36178]
[1730708205609,0.0617408,2467.6,2467.5,9.65766587]
[1730708207853,4.1142608,2467.6,2467.5,1.29588587]
[1730708208007,4.1142608,2467.6,2467.3,0.55]
[1730708208206,4.05284,2467.4,2467.2,0.8154]
[1730708208432,4.05286,2467.4,2467.2,0.8154]
[1730708209034,8.10582,2467.4,2466.9,4.05359]
[1730708209275,4.05286,2467.4,2467.0,4.05349]
[1730708209452,4.05286,2467.4,2467.0,0.887808]
[1730708209947,4.05286,2467.4,2467.0,4.941298]
[1730708210322,4.05286,2467.4,2467.1,3.0]
[1730708211848,4.05286,2467.4,2467.1,0.55]
[1730708212416,4.05286,2467.4,2467.1,3.55]
[1730708213172,0.0617408,2467.6,2467.1,8.5294698]
[1730708213584,0.0617408,2467.6,2467.4,0.55]
[1730708216654,4.1142808,2467.6,2467.1,1.6890198]
[1730708216851,4.05278,2467.5,2467.1,4.81614]
[1730708217080,8.1669008,2467.6,2467.2,0.0810554]
[1730708217455,4.05269,2467.5,2467.1,4.81614]
[1730708217669,4.05269,2467.5,2467.2,0.5626694]
[1730708217980,4.05269,2467.5,2467.2,0.481614]
[1730708218175,4.1142808,2467.6,2467.2,4.61583941]
[1730708219179,0.0617408,2467.6,2467.3,4.603]
[1730708219550,0.0617408,2467.6,2467.3,0.55]
[1730708219747,4.1142908,2467.6,2467.3,1.54817894]
[1730708220594,0.0617408,2467.6,2467.3,5.60117894]
[1730708220798,0.0617408,2467.6,2467.3,5.68223073]
[1730708221089,4.1142608,2467.6,2467.3,1.54817894]
[1730708221784,0.0617408,2467.6,2467.3,5.60117894]
[1730708221985,0.0617408,2467.6,2467.3,5.68223073]
[1730708222695,0.0617408,2467.6,2467.3,1.62923073]
[1730708222862,0.0617408,2467.6,2467.3,5.68221073]
[1730708223361,0.0617408,2467.6,2467.5,8.36878]
[1730708225266,0.0617408,2467.6,2467.5,9.25132709]
[1730708225464,4.05071,2468.7,2468.3,4.81346]
[1730708226272,4.05067,2468.8,2468.4,4.60119]
[1730708226560,4.05058,2468.8,2468.4,1.491465]
[1730708226760,4.05055,2468.8,2468.4,0.55]
[1730708227003,4.05122,2468.4,2468.1,0.7621]
[1730708227172,8.74004034,2468.9,2468.2,0.55]
[1730708227372,4.05106,2468.5,2468.2,0.55]
[1730708227586,4.05124,2468.4,2467.9,4.05193]
[1730708227905,4.05124,2468.4,2468.0,4.60185]
[1730708227906,4.86951,2468.4,2468.0,4.60185]
[1730708228830,4.05138,2468.3,2468.0,0.55]
[1730708229718,4.05138,2468.3,2467.8,7.81367]
[1730708229719,4.05159,2468.2,2467.8,7.81367]
[1730708229921,4.05171,2468.1,2467.7,7.60232]
[1730708230935,4.05171,2468.1,2467.7,7.60227]
[1730708231137,4.05171,2468.1,2467.7,8.843901]
[1730708231504,4.05156,2468.2,2467.9,3.0]
[1730708231855,4.05174,2468.1,2467.7,8.843931]
[1730708232217,3.85168954,2468.3,2467.6,0.7615]
[1730708232413,4.05171,2468.1,2467.7,4.05234]
[1730708233051,4.05171,2468.1,2467.6,4.89501978]
[1730708233354,4.05171,2468.1,2467.6,5.78978476]
[1730708233719,4.05171,2468.1,2467.7,7.05234]
[1730708234251,4.05171,2468.1,2467.6,8.70876498]
[1730708234252,4.05192,2468.0,2467.6,8.70876498]
[1730708234414,4.05192,2468.0,2467.6,3.0]
[1730708234415,4.05209,2467.9,2467.6,3.0]
[1730708234615,4.86052,2468.0,2467.6,3.0]
[1730708235043,4.0519,2468.0,2467.6,7.05247]
[1730708235351,8.91188,2468.2,2467.7,4.05221]
[1730708235536,1.699788,2468.2,2467.5,4.05258]
[1730708235738,4.05202,2468.0,2467.6,4.6025]
[1730708236058,4.05203,2467.9,2467.5,7.0526]
[1730708236921,4.0519,2468.0,2467.5,7.0526]
[1730708237263,4.05173,2468.1,2467.7,4.05231]
[1730708237561,4.05187,2468.0,2467.6,4.0525]
[1730708237757,4.05187,2468.0,2467.6,5.238514]